bitfinex/quotes_ETHUSD_20250914
["timestamp","ask_amount","ask_price","bid_price","bid_amount"]
[1757872811209,0.7784,4621.2,4621.1,3.93036265]
[1757872811611,0.002,4621.2,4621.1,3.93036265]
[1757872812425,0.3074,4621.2,4621.1,3.93036265]
[1757872812642,0.7784,4621.2,4621.1,3.93036265]
[1757872812909,1.2398,4621.2,4621.1,0.20090054]
[1757872813223,1.36398,4621.2,4621.1,0.99290054]
[1757872813543,1.36398,4621.2,4621.1,0.20090054]
[1757872814521,0.90258,4621.2,4621.1,0.20090054]
[1757872815837,1.36398,4621.2,4620.8,0.001]
[1757872816045,0.136598,4621.1,4620.9,0.20116552]
[1757872816250,1.2378,4621.0,4620.8,0.001]
[1757872816422,1.2378,4621.0,4620.9,0.20116462]
[1757872816813,1.2378,4621.0,4620.9,0.99316462]
[1757872817013,2.08710258,4621.0,4620.9,0.99316462]
[1757872817209,4.25113633,4621.0,4620.9,0.20116462]
[1757872817444,4.25113633,4621.0,4620.8,0.001]
[1757872817825,2.16408059,4620.9,4620.8,0.001]
[1757872818228,3.40188059,4620.9,4620.8,0.001]
[1757872818550,1.89317251,4620.9,4620.8,0.001]
[1757872819254,1.2378,4620.9,4620.8,0.001]
[1757872820125,3.40188059,4620.9,4620.8,0.001]
[1757872821049,1.2378,4620.9,4620.8,0.001]
[1757872823044,3.40188059,4620.9,4620.8,0.001]
[1757872826959,6.99688059,4620.9,4620.8,0.001]
[1757872827164,8.2344448,4620.9,4620.8,0.001]
[1757872828463,8.03218566,4620.9,4620.8,0.001]
[1757872830384,5.86810507,4620.9,4620.8,0.001]
[1757872830680,5.40670507,4620.9,4620.8,0.001]
[1757872830844,7.57078566,4620.9,4620.8,0.001]
[1757872832888,5.40670507,4620.9,4620.8,0.001]
[1757872833250,7.57078566,4620.9,4620.8,0.001]
[1757872833583,5.40670507,4620.9,4620.8,0.001]
[1757872834094,7.57078566,4620.9,4620.8,0.001]
[1757872837593,8.05888566,4620.9,4620.8,0.001]
[1757872837804,11.26092035,4620.9,4620.8,0.001]
[1757872837964,2.16431477,4620.4,4620.3,0.001]
[1757872838156,10.62334946,4620.4,4620.3,0.001]
[1757872838356,11.90144946,4620.4,4620.3,0.001]
[1757872838568,11.98811424,4620.4,4620.3,0.001]
[1757872839164,12.09644665,4620.4,4620.3,0.001]
[1757872839363,13.52251578,4620.4,4620.3,0.001]
[1757872840062,13.41418337,4620.4,4620.3,0.001]
[1757872844711,13.52513105,4620.4,4620.3,0.001]
[1757872845815,8.85688337,4620.4,4620.3,0.001]
[1757872846112,12.92708337,4620.4,4620.3,0.001]
[1757872846511,9.33108337,4620.4,4620.3,0.001]
[1757872846703,12.92708337,4620.4,4620.3,0.001]
[1757872848718,16.23395908,4620.4,4620.3,0.001]
[1757872849118,16.72205908,4620.4,4620.3,0.001]
[1757872860332,20.02893479,4620.4,4620.3,0.001]
[1757872860542,27.11893479,4620.4,4620.3,0.001]
[1757872861128,27.2607725,4620.4,4620.3,0.001]
[1757872861534,30.8387725,4620.4,4620.3,0.001]
[1757872861740,28.5597725,4620.4,4620.3,0.001]
[1757872862333,25.83640927,4620.4,4620.3,0.001]
[1757872862536,29.14328498,4620.4,4620.3,0.001]
[1757872862912,2.16464272,4619.7,4619.6,1e-08]
[1757872863107,12.50044005,4619.7,4619.6,1e-08]
[1757872863436,13.59847177,4619.7,4619.6,1e-08]
[1757872863743,13.68515345,4619.7,4619.6,1e-08]
[1757872865961,13.21345345,4619.7,4619.6,1e-08]
[1757872866136,13.21345345,4619.7,4616.8,0.5790006]
[1757872866137,3.30687571,4618.2,4616.8,0.5790006]
[1757872866340,5.16546316,4618.0,4616.9,0.65413371]
[1757872866533,3.79903469,4617.9,4617.0,0.4524]
[1757872866729,0.20203469,4617.9,4617.1,0.4521]
[1757872866932,3.20203469,4618.0,4617.3,0.792]
[1757872867119,3.597,4617.9,4617.5,0.792]
[1757872867321,1.662,4618.1,4617.9,0.3051]
[1757872867538,1.662,4618.1,4618.0,1.6965]
[1757872867821,4.4799375,4618.1,4618.0,4.16703958]
[1757872868230,0.8829375,4618.1,4618.0,4.16703958]
[1757872868522,4.4799375,4618.1,4618.0,1.5492]
[1757872868950,6.84779989,4618.1,4618.0,1.5492]
[1757872870731,13.1546756,4618.1,4618.0,0.3051]
[1757872871251,13.1546756,4618.1,4616.9,0.4521]
[1757872871252,2.16590859,4617.0,4616.9,0.4521]
[1757872871417,10.7507843,4617.0,4616.9,0.4521]
[1757872871613,7.64637829,4617.0,4616.9,0.7572]
[1757872872017,7.64637829,4617.0,4616.9,1.5492]
[1757872872217,7.64637829,4617.0,4616.9,0.7572]
[1757872872416,7.44390859,4617.0,4616.9,0.7572]
[1757872874427,2.16595551,4616.9,4616.8,1e-08]
[1757872874627,2.27395551,4616.9,4616.8,1e-08]
[1757872875358,2.27395551,4616.9,4616.8,0.79200001]
[1757872875663,2.27395551,4616.9,4616.8,1e-08]
[1757872877127,2.92433311,4616.9,4616.8,1e-08]
[1757872877735,3.21703311,4616.9,4616.8,1e-08]
[1757872878562,3.68873311,4616.9,4616.8,1e-08]
[1757872878926,3.80021462,4616.9,4616.8,1e-08]
[1757872879156,0.86985911,4616.9,4616.8,0.75720001]
[1757872879383,4.48785911,4616.9,4616.8,0.75820001]
[1757872879669,3.72948151,4616.9,4616.8,2.00260001]
[1757872879874,0.11148151,4616.9,4616.8,2.00260001]
[1757872880173,3.73048151,4616.9,4616.8,2.00260001]
[1757872881230,3.73048151,4616.9,4616.8,4.16860243]
[1757872881452,3.73048151,4616.9,4616.8,2.00260001]
[1757872883034,3.73048151,4616.9,4616.8,1.55020001]
[1757872883727,3.73048151,4616.9,4616.8,2.00260001]
[1757872884062,3.73048151,4616.9,4616.8,1.55020001]
[1757872885462,0.11148151,4616.9,4616.8,1.55020001]
[1757872885655,3.72948151,4616.9,4616.8,2.00260001]
[1757872886970,3.72948151,4616.9,4616.8,4.16860243]
[1757872887134,3.72948151,4616.9,4616.8,2.00260001]
[1757872888976,3.72948151,4616.9,4616.8,1.55020001]
[1757872889285,0.11148151,4616.9,4616.8,1.55020001]
[1757872889491,3.73048151,4616.9,4616.8,1.55020001]
[1757872894792,3.619,4616.9,4616.8,1.55020001]
[1757872895987,1.77,4617.0,4616.9,0.792]
[1757872896184,5.387,4617.0,4616.9,1.96092]
[1757872896390,5.387,4617.0,4616.9,2.27132]
[1757872896595,5.387,4617.0,4616.9,2.0371]
[1757872896999,5.278,4617.0,4616.9,4.20305551]
[1757872897507,1.662,4617.0,4616.9,4.20305551]
[1757872897806,5.278,4617.0,4616.9,4.20305551]
[1757872897994,5.278,4617.0,4616.9,5.1017931]
[1757872899115,1.662,4617.0,4616.9,5.1017931]
[1757872899410,0.108,4617.7,4617.6,2.95762716]
[1757872899610,1.663,4617.8,4617.7,2.95758026]
[1757872899816,4.619,4617.8,4617.7,4.20268026]
[1757872900905,4.619,4617.8,4617.7,3.75978026]
[1757872901502,1.663,4617.8,4617.7,3.75978026]
[1757872901834,5.279,4617.8,4617.7,3.75978026]
[1757872903492,0.108,4618.0,4617.9,0.792]
[1757872903692,3.722,4618.0,4617.9,0.792]
[1757872903920,3.722,4618.0,4617.9,1.5942]
[1757872906421,3.722,4618.0,4617.9,1.1024]
[1757872907122,0.002,4618.1,4617.9,3.78134133]
[1757872907457,0.002,4618.1,4618.0,1.2838]
[1757872907458,3.615,4618.1,4618.0,1.2838]
[1757872907617,4.3734,4618.1,4618.0,0.792]
[1757872909525,7.00729269,4618.1,4618.0,0.792]
[1757872909960,4.3734,4618.1,4618.0,0.792]
[1757872912473,6.53879269,4618.1,4618.0,0.792]
[1757872912982,4.3734,4618.1,4618.0,0.792]
[1757872913533,6.53879269,4618.1,4618.0,0.792]
[1757872913750,4.3734,4618.1,4618.0,0.792]
[1757872913965,6.53879269,4618.1,4618.0,0.792]
[1757872914168,6.53879269,4618.1,4618.0,0.793]
[1757872914468,4.3734,4618.1,4618.0,0.793]
[1757872914977,6.53879269,4618.1,4618.0,0.793]
[1757872915144,4.3734,4618.1,4618.0,0.793]
[1757872915829,6.99109269,4618.1,4618.0,0.793]
[1757872916970,4.8257,4618.1,4618.0,0.793]
[1757872917265,8.10905381,4618.1,4618.0,0.001]
[1757872920674,7.65675381,4618.1,4618.0,0.001]
[1757872922450,8.10695381,4618.1,4618.0,0.001]
[1757872922774,7.20195381,4618.1,4618.0,0.001]
[1757872922942,7.66655381,4618.1,4618.0,0.001]
[1757872923344,7.66555381,4618.1,4618.0,0.001]
[1757872923657,3.81632598,4618.1,4618.0,0.001]
[1757872924182,4.11542598,4618.1,4618.0,0.001]
[1757872924386,4.58002598,4618.1,4618.0,0.001]
[1757872924586,6.74541867,4618.1,4618.0,0.001]
[1757872928449,6.28081867,4618.1,4618.0,0.001]
[1757872928873,6.74541867,4618.1,4618.0,0.001]
[1757872929265,11.43171165,4618.1,4618.0,0.001]
[1757872929672,12.0825163,4618.1,4618.0,0.001]
[1757872933579,12.08227856,4618.1,4618.0,0.001]
[1757872934581,11.63207856,4618.1,4618.0,0.001]
[1757872934757,8.02007856,4618.1,4618.0,0.001]
[1757872934958,11.63207856,4618.1,4618.0,0.001]
[1757872936314,5.09098587,4618.1,4618.0,0.001]
[1757872936595,8.98202922,4618.1,4618.0,0.758]
[1757872936758,5.82562922,4618.1,4618.0,0.758]
[1757872936963,4.27123653,4618.1,4618.0,0.758]
[1757872937195,7.27123653,4618.1,4618.0,0.758]
[1757872937396,3.81663653,4618.1,4618.0,2.0024]
[1757872937596,3.614,4618.1,4618.0,2.0024]
[1757872937996,5.77939269,4618.1,4618.0,1.55]
[1757872938186,5.98202922,4618.1,4618.0,1.55]
[1757872938503,5.98202922,4618.1,4618.0,1.0944]
[1757872938665,3.81663653,4618.1,4618.0,1.0944]
[1757872938865,3.614,4618.1,4618.0,1.0944]
[1757872939067,3.81663653,4618.1,4618.0,1.55]
[1757872939586,3.614,4618.1,4618.0,2.0024]
[1757872939789,0.002,4618.1,4618.0,1.55]
[1757872939996,3.613,4618.1,4618.0,2.0024]
[1757872940579,0.002,4618.1,4618.0,2.0024]
[1757872940780,3.613,4618.1,4618.0,2.0024]
[1757872941001,3.613,4618.1,4618.0,1.55]
[1757872942202,5.98102922,4618.1,4618.0,1.55]
[1757872943190,3.81563653,4618.1,4618.0,1.55]
[1757872943395,3.613,4618.1,4618.0,1.55]
[1757872943927,5.77839269,4618.1,4618.0,1.55]
[1757872944075,5.98102922,4618.1,4618.0,1.55]
[1757872945217,3.81563653,4618.1,4618.0,1.55]
[1757872945420,3.613,4618.1,4618.0,1.55]
[1757872946056,3.81563653,4618.1,4618.0,0.793]
[1757872946213,3.613,4618.1,4618.0,0.793]
[1757872947212,5.77839269,4618.1,4618.0,0.793]
[1757872947443,5.98102922,4618.1,4618.0,0.793]
[1757872949662,3.81563653,4618.1,4618.0,0.793]
[1757872949943,5.98102922,4618.1,4618.0,0.793]
[1757872950448,6.29702922,4618.1,4618.0,0.793]
[1757872950648,11.28121126,4618.1,4618.0,0.001]
[1757872950811,11.93142816,4618.1,4618.0,0.001]
[1757872951851,11.43762816,4618.1,4618.0,0.001]
[1757872952041,11.43662816,4618.1,4618.0,0.001]
[1757872953865,11.93042816,4618.1,4618.0,0.001]
[1757872956628,11.43662816,4618.1,4618.0,0.001]
[1757872957927,2.16562716,4617.6,4617.5,0.00052839]
[1757872958254,7.43762716,4617.6,4617.5,0.00052839]
[1757872958557,7.64026369,4617.6,4617.5,1.08412839]
[1757872958770,7.64026369,4617.6,4617.5,1.58302839]
[1757872959961,7.64016948,4617.6,4617.5,1.58302839]
[1757872962759,7.43762716,4617.6,4617.5,1.58302839]
[1757872962956,9.02807213,4617.6,4617.5,0.00052839]
[1757872963161,9.49357213,4617.6,4617.5,0.00052839]
[1757872963360,9.94129904,4617.6,4617.5,0.00052839]
[1757872963562,10.14386114,4617.6,4617.5,0.00052839]
[1757872964071,9.67836114,4617.6,4617.5,0.00052839]
[1757872967561,10.14386114,4617.6,4617.5,0.00052839]
[1757872969777,10.63766114,4617.6,4617.5,0.00052839]
[1757872975820,13.63766114,4617.6,4617.5,0.00052839]
[1757872978009,13.63766114,4617.6,4616.8,0.00100001]
[1757872978010,2.16595551,4616.9,4616.8,1e-08]
[1757872978306,12.71620686,4616.9,4616.8,1e-08]
[1757872978503,13.97460686,4616.9,4616.8,1e-08]
[1757872978710,14.43410686,4616.9,4616.8,1e-08]
[1757872983522,10.82810686,4616.9,4616.8,1e-08]
[1757872983726,14.43410686,4616.9,4616.8,1e-08]
[1757872985416,10.82810686,4616.9,4616.8,1e-08]
[1757872985615,10.34360686,4616.9,4616.8,1e-08]
[1757872985841,13.94960686,4616.9,4616.8,1e-08]
[1757872986148,6.26120176,4616.9,4616.8,0.48480001]
[1757872986303,2.16609626,4616.6,4616.5,0.4858]
[1757872986635,10.43809626,4616.6,4616.5,0.4858]
[1757872986805,10.64065836,4616.6,4616.5,0.4858]
[1757872987408,10.64065836,4616.6,4616.5,0.001]
[1757872987608,11.10405836,4616.6,4616.5,0.001]
[1757872987831,13.37430658,4616.6,4616.5,0.001]
[1757872988827,13.66490658,4616.6,4616.5,0.001]
[1757872989615,16.21941168,4616.6,4616.5,0.4858]
[1757872989815,12.61041168,4616.6,4616.5,0.4858]
[1757872990128,16.21888487,4616.6,4616.5,0.4858]
[1757872990937,16.21888487,4616.6,4616.5,0.001]
[1757872991136,16.68228487,4616.6,4616.5,0.001]
[1757872992568,13.36388487,4616.6,4616.5,0.001]
[1757872992736,16.97288487,4616.6,4616.5,0.001]
[1757872997665,17.45838487,4616.6,4616.5,0.001]
[1757873000072,16.97288487,4616.6,4616.5,0.001]
[1757873001480,16.97317382,4616.6,4616.5,0.001]
[1757873002867,12.61017382,4616.6,4616.5,0.4858]
[1757873003041,9.30166872,4616.6,4616.5,0.7513]
[1757873003371,16.21617382,4616.6,4616.5,0.7513]
[1757873003966,12.90766872,4616.6,4616.5,0.7513]
[1757873004171,12.90766872,4616.6,4616.5,1.5433]
[1757873004172,4.0314205,4616.6,4616.5,1.5433]
[1757873004470,5.271,4616.6,4616.5,1.7092]
[1757873004645,5.47332424,4616.6,4616.5,1.7092]
[1757873005254,7.6394205,4616.6,4616.5,1.7092]
[1757873006953,7.6394205,4616.6,4616.5,1.5433]
[1757873007357,7.6394205,4616.6,4616.5,1.7092]
[1757873008076,7.6394205,4616.6,4616.5,1.5433]
[1757873012879,7.6394205,4616.6,4616.5,1.88022]
[1757873012880,5.271,4616.6,4616.5,1.88022]
[1757873013082,7.43709626,4616.6,4616.5,1.88022]
[1757873013801,5.271,4616.6,4616.5,1.88022]
[1757873014127,7.43709626,4616.6,4616.5,1.88022]
[1757873014270,7.43709626,4616.6,4616.5,1.7092]
[1757873014469,7.43709626,4616.6,4616.5,1.5433]
[1757873014470,3.82909626,4616.6,4616.5,1.5433]
[1757873014685,7.43509626,4616.6,4616.5,1.5433]
[1757873015406,7.63750192,4616.6,4616.5,1.5433]
[1757873015780,7.43509626,4616.6,4616.5,1.5433]
[1757873017792,5.269,4616.6,4616.5,1.5433]
[1757873018613,1.663,4616.6,4616.5,1.71432]
[1757873018780,4.381,4616.6,4616.5,1.88022]
[1757873020659,5.267,4616.6,4616.5,1.88022]
[1757873020950,5.375,4616.6,4616.5,1.88022]
[1757873023242,5.375,4616.6,4616.5,0.40475031]
[1757873023547,5.375,4616.6,4616.0,0.001]
[1757873023846,3.712,4616.6,4616.1,0.20157598]
[1757873024178,3.712,4616.6,4616.2,0.20157598]
[1757873024366,3.712,4616.6,4616.3,0.20157598]
[1757873024563,3.712,4616.6,4616.1,2.16632711]
[1757873024766,3.712,4616.6,4616.2,0.42911779]
[1757873024941,3.712,4616.6,4616.3,0.20158508]
[1757873025268,3.712,4616.6,4616.4,0.67968826]
[1757873025470,3.712,4616.6,4616.4,0.4781]
[1757873026255,5.87810014,4616.6,4616.4,0.4781]
[1757873026572,5.87810014,4616.6,4616.4,0.62786327]
[1757873027170,3.712,4616.6,4616.4,0.62786327]
[1757873029480,5.87811648,4616.6,4616.4,0.62786327]
[1757873029643,0.3147,4616.5,4616.0,0.001]
[1757873029976,2.27423702,4616.3,4616.2,0.792]
[1757873030168,2.90873702,4616.3,4616.2,0.99367971]
[1757873030342,0.7425,4616.3,4616.2,0.99367971]
[1757873030779,0.4278,4616.3,4616.2,0.99367971]
[1757873031179,3.603,4616.4,4616.2,0.99367971]
[1757873031385,3.603,4616.4,4616.3,0.20167971]
[1757873032176,4.0308,4616.4,4616.3,0.20167971]
[1757873032684,4.3455,4616.4,4616.3,0.20167971]
[1757873033050,4.3455,4616.4,4616.3,0.99367971]
[1757873033385,4.3455,4616.4,4616.0,0.001]
[1757873033386,2.16633088,4616.1,4616.0,0.001]
[1757873033581,5.76933088,4616.1,4616.0,0.001]
[1757873033885,2.16679083,4615.2,4614.4,0.792]
[1757873034088,0.108,4615.0,4614.5,0.20213585]
[1757873034257,3.605,4614.9,4614.6,0.20213585]
[1757873034459,4.0792,4614.9,4614.8,0.792]
[1757873034775,4.0792,4614.9,4614.8,0.20213585]
[1757873035172,3.605,4614.9,4614.8,0.99413585]
[1757873035405,3.605,4614.9,4614.8,1.25037115]
[1757873036157,3.605,4614.9,4614.8,1.72187115]
[1757873036353,0.108,4615.0,4614.8,1.72187115]
[1757873036584,0.108,4615.0,4614.9,0.67363585]
[1757873036886,0.108,4615.0,4614.9,0.20213585]
[1757873037389,0.108,4615.0,4614.9,0.98662272]
[1757873038386,0.108,4615.0,4614.9,0.40479468]
[1757873039079,0.5822,4615.0,4614.9,0.40479468]
[1757873039292,0.8946,4615.0,4614.9,0.40479468]
[1757873039895,1.3609,4615.0,4614.9,0.20213585]
[1757873040469,0.8946,4615.0,4614.9,0.20213585]
[1757873041774,0.108,4615.0,4614.9,0.20213585]
[1757873042990,0.8848,4615.0,4614.9,0.20213585]
[1757873043509,0.108,4615.0,4614.9,0.20213585]
[1757873043685,0.108,4615.0,4614.9,0.35973224]
[1757873043888,0.5828,4615.0,4614.9,0.35973224]
[1757873050788,0.8848,4615.0,4614.9,0.35973224]
[1757873050984,0.8848,4615.0,4614.9,0.20213585]
[1757873051201,0.8848,4615.0,4614.9,0.99413585]
[1757873051492,1.3511,4615.0,4614.9,0.99413585]
[1757873051827,1.3511,4615.0,4614.9,0.792]
[1757873052318,3.51794723,4615.0,4614.9,0.792]
[1757873054421,1.3511,4615.0,4614.9,0.792]
[1757873055323,1.3511,4615.0,4614.9,0.99382644]
[1757873055700,3.51794723,4615.0,4614.9,0.99382644]
[1757873056084,3.51794723,4615.0,4614.9,0.792]
[1757873056289,3.51794723,4615.0,4614.9,0.99385256]
[1757873056591,3.51794723,4615.0,4614.9,0.792]
[1757873058021,1.3511,4615.0,4614.9,0.792]
[1757873058321,3.51794723,4615.0,4614.9,0.99393284]
[1757873060192,1.3511,4615.0,4614.9,0.99393284]
[1757873060522,3.51794723,4615.0,4614.9,0.99393284]
[1757873063308,1.3511,4615.0,4614.9,1.57576088]
[1757873063496,0.8848,4615.0,4614.9,1.57576088]
[1757873063698,0.8848,4615.0,4614.9,0.99393284]
[1757873065242,3.05164723,4615.0,4614.9,0.99393284]
[1757873066750,3.05164723,4615.0,4614.9,1.57681889]
[1757873067415,0.5828,4615.0,4614.9,1.57681889]
[1757873068222,2.74964723,4615.0,4614.9,1.57681889]
[1757873068647,3.05164723,4615.0,4614.9,1.57681889]
[1757873069248,0.5828,4615.0,4614.9,1.57681889]
[1757873069450,2.74964723,4615.0,4614.9,1.57681889]
[1757873069634,3.06234723,4615.0,4614.9,1.57681889]
[1757873071827,0.8955,4615.0,4614.9,1.57681889]
[1757873072156,3.52154723,4615.0,4614.9,1.57681889]
[1757873074360,0.8955,4615.0,4614.9,1.57681889]
[1757873074957,3.06234723,4615.0,4614.9,1.57681889]
[1757873075259,0.4207,4615.0,4614.9,1.57681889]
[1757873075428,0.8945,4615.0,4614.9,0.99393284]
[1757873076059,0.5818,4615.0,4614.9,0.99393284]
[1757873076358,0.108,4615.0,4614.9,0.99393284]
[1757873076661,3.712,4615.0,4614.9,0.99393284]
[1757873077042,4.1858,4615.0,4614.9,1.57690659]
[1757873078371,3.712,4615.0,4614.9,1.57690659]
[1757873079580,3.712,4615.0,4614.9,0.99445704]
[1757873081383,4.1858,4615.0,4614.9,0.99445704]
[1757873082760,3.712,4615.0,4614.9,0.99445704]
[1757873085082,4.1858,4615.0,4614.9,0.99445704]
[1757873086000,4.4985,4615.0,4614.9,0.99445704]
[1757873090091,4.70160759,4615.0,4614.9,0.99445704]
[1757873090290,5.16080759,4615.0,4614.9,0.99445704]
[1757873092779,7.32765482,4615.0,4614.9,0.99445704]
[1757873093668,5.16080564,4615.0,4614.9,0.99445704]
[1757873096675,4.70160564,4615.0,4614.9,0.99445704]
[1757873099564,1.09760564,4615.0,4614.9,0.99445704]
[1757873099763,4.4975,4615.0,4614.9,0.99445704]
[1757873100195,4.70060564,4615.0,4614.9,0.99445704]
[1757873103673,4.4975,4615.0,4614.9,0.99445704]
[1757873104200,4.9679,4615.0,4614.9,0.99445704]
[1757873104766,4.4975,4615.0,4614.9,0.99445704]
[1757873110915,3.711,4615.0,4614.9,0.99445704]
[1757873111290,4.1602,4615.0,4614.9,0.99445704]
[1757873113100,3.711,4615.0,4614.9,0.99445704]
[1757873113298,3.711,4615.0,4614.9,1.45235704]
[1757873114010,3.711,4615.0,4614.9,0.99445704]
[1757873114211,3.711,4615.0,4614.9,3.16135123]
[1757873114417,3.711,4615.0,4614.9,0.99445704]
[1757873115515,4.1602,4615.0,4614.9,0.99445704]
[1757873117110,4.4665,4615.0,4614.9,0.99445704]
[1757873118509,4.9369,4615.0,4614.9,0.99445704]
[1757873122791,11.32972328,4615.0,4614.9,0.20245704]
[1757873122995,11.32972328,4615.0,4614.8,0.001]
[1757873122996,2.16689419,4614.9,4614.8,0.001]
[1757873123229,2.36995908,4614.9,4614.8,0.20342352]
[1757873123426,2.67625908,4614.9,4614.8,0.20342352]
[1757873123723,4.85356083,4614.9,4614.8,0.20342352]
[1757873124294,5.5041641,4614.9,4614.8,0.20342352]
[1757873125396,5.5041641,4614.9,4614.8,0.001]
[1757873134820,5.0337641,4614.9,4614.8,0.001]
[1757873135020,3.77606235,4614.9,4614.8,0.001]
[1757873135267,7.37806235,4614.9,4614.8,0.001]
[1757873136641,6.62256235,4614.9,4614.8,0.001]
[1757873136823,7.06246235,4614.9,4614.8,0.001]
[1757873137023,7.36296235,4614.9,4614.8,0.001]
[1757873138862,9.02696235,4614.9,4614.8,0.001]
[1757873139556,9.48966235,4614.9,4614.8,0.001]
[1757873139744,10.66611093,4614.9,4614.8,0.001]
[1757873144243,9.48966235,4614.9,4614.8,0.001]
[1757873144646,6.86006816,4614.9,4614.8,0.001]
[1757873145176,9.02696235,4614.9,4614.8,0.001]
[1757873147142,5.42496235,4614.9,4614.8,0.001]
[1757873147377,9.02696235,4614.9,4614.8,0.001]
[1757873147875,2.51766816,4614.9,4614.8,0.001]
[1757873148199,6.35650327,4614.9,4614.8,0.001]
[1757873148399,8.72646235,4614.9,4614.8,0.001]
[1757873151793,9.02696235,4614.9,4614.8,0.001]
[1757873153782,6.86006816,4614.9,4614.8,0.001]
[1757873154290,6.11966816,4614.9,4614.8,0.001]
[1757873154698,6.55346816,4614.9,4614.8,0.001]
[1757873154864,8.72036235,4614.9,4614.8,0.001]
[1757873155195,9.01716235,4614.9,4614.8,0.001]
[1757873156562,6.85026816,4614.9,4614.8,0.001]
[1757873156964,9.01716235,4614.9,4614.8,0.001]
[1757873158498,9.50696235,4614.9,4614.8,0.001]
[1757873159269,9.01716235,4614.9,4614.8,0.001]
[1757873160568,6.85026816,4614.9,4614.8,0.001]
[1757873160777,6.11866816,4614.9,4614.8,0.001]
[1757873161183,6.59186816,4614.9,4614.8,0.001]
[1757873161584,6.88526816,4614.9,4614.8,0.001]
[1757873162273,9.05216235,4614.9,4614.8,0.001]
[1757873162796,9.54686235,4614.9,4614.8,0.001]
[1757873163505,7.37996816,4614.9,4614.8,0.001]
[1757873163673,9.54686235,4614.9,4614.8,0.001]
[1757873164004,6.88526816,4614.9,4614.8,0.001]
[1757873164303,9.05216235,4614.9,4614.8,0.001]
[1757873164684,6.88526816,4614.9,4614.8,0.001]
[1757873164884,9.05216235,4614.9,4614.8,0.001]
[1757873165407,6.88526816,4614.9,4614.8,0.001]
[1757873165703,6.88526816,4614.9,4614.8,0.20357871]
[1757873166408,9.05216235,4614.9,4614.8,0.20357871]
[1757873167597,6.88526816,4614.9,4614.8,0.20357871]
[1757873168202,9.05216235,4614.9,4614.8,0.20357871]
[1757873171020,9.54686235,4614.9,4614.8,0.20357871]
[1757873172803,7.37996816,4614.9,4614.8,0.20357871]
[1757873173218,9.54686235,4614.9,4614.8,0.20357871]
[1757873173532,9.05216235,4614.9,4614.8,0.20357871]
[1757873173719,9.05224025,4614.9,4614.8,0.20358345]
[1757873175092,6.88534606,4614.9,4614.8,0.20358345]
[1757873175290,2.51774606,4614.9,4614.8,0.20358345]
[1757873175492,6.11874606,4614.9,4614.8,0.20358345]
[1757873175720,6.59194606,4614.9,4614.8,0.20358345]
[1757873175906,9.05224025,4614.9,4614.8,0.20358345]
[1757873176950,6.88534606,4614.9,4614.8,0.20358345]
[1757873177737,9.05224025,4614.9,4614.8,0.20358345]
[1757873179195,6.88534606,4614.9,4614.8,0.20358345]
[1757873179396,9.05224025,4614.9,4614.8,0.20358345]
[1757873180751,6.88534606,4614.9,4614.8,0.20358345]
[1757873181244,9.05224025,4614.9,4614.8,0.20358345]
[1757873182040,6.88534606,4614.9,4614.8,0.20358345]
[1757873182460,2.51774606,4614.9,4614.8,0.20358345]
[1757873182765,5.264,4614.9,4614.8,3.65592459]
[1757873182970,5.46714279,4614.9,4614.8,4.23822519]
[1757873183285,5.46714279,4614.9,4614.8,2.07128405]
[1757873183427,5.46714279,4614.9,4614.8,1.48898345]
[1757873184149,5.46714279,4614.9,4614.8,0.99558345]
[1757873185744,5.94034279,4614.9,4614.8,0.99558345]
[1757873186142,5.46714279,4614.9,4614.8,0.99558345]
[1757873188273,5.46714279,4614.9,4614.8,1.01725286]
[1757873189802,5.46714279,4614.9,4614.8,0.99558345]
[1757873190178,5.93854279,4614.9,4614.8,0.99558345]
[1757873190970,2.33854279,4614.9,4614.8,0.99558345]
[1757873191162,5.264,4614.9,4614.8,0.99558345]
[1757873191363,0.20314279,4614.9,4614.8,3.62122459]
[1757873191674,0.108,4615.0,4614.9,0.792]
[1757873191895,3.708,4615.0,4614.9,0.99458345]
[1757873193217,4.0065,4615.0,4614.9,0.99458345]
[1757873193372,4.4779,4615.0,4614.9,0.99458345]
[1757873193571,4.68104279,4615.0,4614.9,0.99458345]
[1757873193803,6.84789002,4615.0,4614.9,0.99458345]
[1757873194565,4.68104279,4615.0,4614.9,0.99458345]
[1757873197183,4.38254279,4615.0,4614.9,0.99458345]
[1757873197390,3.91114279,4615.0,4614.9,1.45328345]
[1757873197599,3.708,4615.0,4614.9,1.81541374]
[1757873197806,3.708,4615.0,4614.9,1.35671374]
[1757873198111,4.1794,4615.0,4614.9,1.35671374]
[1757873198312,4.1794,4615.0,4614.9,0.99458345]
[1757873199686,4.1784,4615.0,4614.9,0.99458345]
[1757873200416,3.707,4615.0,4614.9,3.16147764]
[1757873200722,3.707,4615.0,4614.9,3.62017764]
[1757873201194,3.707,4615.0,4614.9,3.16147764]
[1757873201703,3.707,4615.0,4614.9,0.99458345]
[1757873202081,4.4769,4615.0,4614.9,0.99458345]
[1757873202689,4.68004279,4615.0,4614.9,0.99458345]
[1757873203484,5.13934279,4615.0,4614.9,0.99458345]
[1757873203687,4.68004279,4615.0,4614.9,0.99458345]
[1757873206816,4.38154279,4615.0,4614.9,0.99458345]
[1757873207015,4.1784,4615.0,4614.9,0.99458345]
[1757873208014,4.1784,4615.0,4614.9,0.99442307]
[1757873210354,3.707,4615.0,4614.9,1.45312307]
[1757873210657,3.707,4615.0,4614.9,1.59853538]
[1757873210849,3.707,4615.0,4614.9,1.62020432]
[1757873211258,3.707,4615.0,4614.9,3.78709851]
[1757873211851,3.707,4615.0,4614.9,1.16150432]
[1757873212053,3.707,4615.0,4614.9,3.32839851]
[1757873212639,3.707,4615.0,4614.9,1.16150432]
[1757873212949,3.707,4615.0,4614.9,1.13983538]